fUSD/lending_fUSD_20251105
["ID","MTS","AMOUNT","RATE_DAILY","PERIOD"]
[393228807,1762354194594,-284.47524354,0.00016662,2]
[393228808,1762354197714,-214.6380603,0.00016662,2]
[393228809,1762354200513,-193.82767528,0.00016662,2]
[393228810,1762354200539,-139.70262234,0.00016662,2]
[393228811,1762354216603,-19.17375387,0.00016662,2]
[393228812,1762354216628,-203.33677104,0.00016662,2]
[393228813,1762354218121,-208.32539986,0.00016662,2]
[393228814,1762354222446,-207.43160238,0.00016662,2]
[393228815,1762354224351,-318.59217476,0.00016662,2]
[393228816,1762354224376,-101.40782524,0.00016662,2]
[393228817,1762354228146,-260.09035706,0.00016662,2]
[393228818,1762354231227,-167.57980382,0.00016662,2]
[393228823,1762354231636,-470.92201388,0.00016662,2]
[393228824,1762354231646,-300.0,0.00016704,2]
[393228825,1762354231656,-177.42538679,0.00016704,2]
[393228826,1762354231750,-508.67861572,0.00016704,2]
[393228827,1762354231761,-513.89599749,0.00016704,2]
[393228828,1762354231774,-300.0,0.00016704,2]
[393228829,1762354231785,-8469.0446495,0.00016705,2]
[393228830,1762354231795,-1335.7,0.00016752,2]
[393228831,1762354231804,-500.0,0.00016761,2]
[393228832,1762354231814,-500.0,0.00016761,2]
[393228833,1762354231823,-500.0,0.00016761,2]
[393228834,1762354231832,-500.0,0.00016761,2]
[393228835,1762354231842,-500.0,0.00016761,2]
[393228836,1762354231852,-500.0,0.00016761,2]
[393228837,1762354231861,-500.0,0.00016761,2]
[393228838,1762354231870,-500.0,0.00016761,2]
[393228839,1762354231879,-500.0,0.00016761,2]
[393228840,1762354231888,-500.0,0.00016761,2]
[393228841,1762354231897,-500.0,0.00016761,2]
[393228842,1762354231907,-500.0,0.00016761,2]
[393228843,1762354231917,-500.0,0.00016761,2]
[393228844,1762354231934,-554.78994095,0.00016761,2]
[393228846,1762354231950,-703.87798036,0.00016761,2]
[393228848,1762354231959,-703.87798036,0.00016761,2]
[393228849,1762354231970,-703.87798036,0.00016761,2]
[393228851,1762354231979,-703.87798036,0.00016761,2]
[393228853,1762354231991,-703.87798036,0.00016761,2]
[393228854,1762354232000,-703.87798036,0.00016761,2]
[393228856,1762354232009,-703.87798036,0.00016761,2]
[393228857,1762354232019,-703.87798036,0.00016761,2]
[393228858,1762354232028,-703.87798036,0.00016761,2]
[393228859,1762354232038,-703.87798036,0.00016761,2]
[393228860,1762354232047,-703.87798036,0.00016761,2]
[393228861,1762354232057,-703.87798036,0.00016761,2]
[393228862,1762354232066,-703.87798036,0.00016761,2]
[393228863,1762354232075,-703.87798036,0.00016761,2]
[393228864,1762354232084,-703.87798036,0.00016761,2]
[393228865,1762354232093,-703.87798036,0.00016761,2]
[393228866,1762354232103,-703.87798036,0.00016761,2]
[393228867,1762354232112,-703.87798036,0.00016761,2]
[393228868,1762354232121,-703.87798036,0.00016761,2]
[393228869,1762354232130,-703.87798036,0.00016761,2]
[393228870,1762354232140,-703.87798036,0.00016761,2]
[393228871,1762354232150,-703.87798036,0.00016761,2]
[393228872,1762354232161,-703.87798036,0.00016761,2]
[393228873,1762354232171,-703.87798036,0.00016761,2]
[393228874,1762354232180,-703.87798036,0.00016761,2]
[393228875,1762354232190,-703.87798036,0.00016761,2]
[393228876,1762354232202,-703.87798036,0.00016761,2]
[393228877,1762354232211,-703.87798036,0.00016761,2]
[393228878,1762354232222,-703.87798036,0.00016761,2]
[393228879,1762354232231,-703.87798036,0.00016761,2]
[393228880,1762354232240,-700.17335941,0.00016761,2]
[393228881,1762354232250,-700.17335941,0.00016761,2]
[393228882,1762354232259,-700.17335941,0.00016761,2]
[393228883,1762354232268,-700.17335941,0.00016761,2]
[393228884,1762354232278,-700.17335941,0.00016761,2]
[393228885,1762354232287,-700.17335941,0.00016761,2]
[393228886,1762354232296,-700.17335941,0.00016761,2]
[393228887,1762354232305,-700.17335941,0.00016761,2]
[393228888,1762354232314,-700.17335941,0.00016761,2]
[393228889,1762354232324,-700.17335941,0.00016761,2]
[393228890,1762354232333,-700.17335941,0.00016761,2]
[393228891,1762354232343,-700.17335941,0.00016761,2]
[393228892,1762354232352,-700.17335941,0.00016761,2]
[393228893,1762354232361,-700.17335941,0.00016761,2]
[393228894,1762354232370,-700.17335941,0.00016761,2]
[393228895,1762354232380,-700.17335941,0.00016761,2]
[393228896,1762354232390,-700.17335941,0.00016761,2]
[393228897,1762354232402,-700.17335941,0.00016761,2]
[393228898,1762354232411,-700.17335941,0.00016761,2]
[393228899,1762354232420,-739.07187932,0.00016761,2]
[393228900,1762354232430,-508.93186817,0.00016761,2]
[393228901,1762354232439,-391.57492831,0.00016761,2]
[393228902,1762354232448,-364889.67268349,0.00016762,2]
[393228903,1762354232828,-55110.32731651,0.00016762,2]
[393228904,1762354232838,-1000.0,0.00016762,2]
[393228905,1762354232848,-500.40594089,0.00016773,2]
[393228906,1762354232859,-500.0,0.00016773,2]
[393228907,1762354232868,-500.0,0.00016773,2]
[393228908,1762354232877,-500.0,0.00016773,2]
[393228909,1762354232886,-500.0,0.00016773,2]
[393228910,1762354232895,-500.0,0.00016773,2]
[393228911,1762354232905,-692.94097906,0.000168,2]
[393228912,1762354232915,-500.0,0.00016802,2]
[393228913,1762354232924,-500.0,0.00016802,2]
[393228914,1762354232933,-500.0,0.00016802,2]
[393228915,1762354232943,-500.0,0.00016802,2]
[393228916,1762354232952,-500.0,0.00016802,2]
[393228917,1762354232962,-500.0,0.00016802,2]
[393228918,1762354232975,-500.0,0.00016802,2]
[393228919,1762354232985,-500.0,0.00016802,2]
[393228920,1762354232995,-500.0,0.00016802,2]
[393228921,1762354233004,-500.0,0.00016802,2]
[393228922,1762354233014,-500.0,0.00016802,2]
[393228923,1762354233024,-322.6107,0.00016802,2]
[393228924,1762354233034,-200.0,0.00016834,2]
[393228925,1762354233043,-500.0,0.00016861,2]
[393228926,1762354233056,-618.99,0.00016885,2]
[393228927,1762354233066,-692.94097906,0.00016937,2]
[393228928,1762354233076,-341.0,0.00016958,2]
[393228929,1762354233085,-158.87637621,0.00016972,2]
[393228930,1762354233095,-250.39732955,0.00017,2]
[393228931,1762354233105,-250.0,0.00017,2]
[393228932,1762354233115,-1416.31977149,0.00017005,2]
[393228933,1762354233125,-821.42,0.00017034,2]
[393228934,1762354233134,-692.94097906,0.00017075,2]
[393228935,1762354233144,-692.94097906,0.00017212,2]
[393228936,1762354233154,-504.0,0.00017233,2]
[393228937,1762354233163,-158.87637621,0.00017281,2]
[393228938,1762354233173,-821.42,0.00017308,2]
[393228939,1762354233182,-1000.0,0.00017321,2]
[393228940,1762354233192,-266.53522819,0.00017321,2]
[393228941,1762354233203,-500.0,0.00017348,2]
[393228942,1762354233212,-341.0,0.00017349,2]
[393228943,1762354233224,-1725.4232318,0.0001735,2]
[393228944,1762354233235,-692.94097906,0.0001735,2]
[393228945,1762354233246,-1335.7,0.00017374,2]
[393228946,1762354233255,-2887.0,0.00017383,2]
[393228947,1762354233265,-341.0,0.00017396,2]
[393228948,1762354233274,-501.72880029,0.00017433,2]
[393228949,1762354233284,-341.0,0.00017469,2]
[393228950,1762354233293,-150.0,0.00017479,2]
[393228951,1762354233303,-150.0,0.00017479,2]
[393228952,1762354233312,-150.0,0.00017479,2]
[393228953,1762354233322,-150.0,0.00017479,2]
[393228954,1762354233332,-150.0,0.00017479,2]
[393228955,1762354233342,-150.0,0.00017479,2]
[393228956,1762354233352,-150.0,0.00017479,2]
[393228957,1762354233362,-1725.4232318,0.00017487,2]
[393228958,1762354233372,-692.94097906,0.00017487,2]
[393228959,1762354233382,-2887.0,0.00017527,2]
[393228960,1762354233391,-821.42,0.00017582,2]
[393228961,1762354233401,-158.87637621,0.00017591,2]
[393228962,1762354233411,-2256.0,0.00017595,2]
[393228963,1762354233420,-1725.4232318,0.00017625,2]
[393228964,1762354233430,-692.94097906,0.00017625,2]
[393228965,1762354233439,-191.26,0.0001766,2]
[393228966,1762354233451,-221.75791629,0.00017663,2]
[393228967,1762354233460,-218.29,0.00017668,2]
[393228968,1762354233470,-2887.0,0.00017671,2]
[393228969,1762354233479,-1000.0,0.00017692,2]
[393228970,1762354233489,-1000.0,0.00017709,2]
[393228971,1762354233498,-6035.9293467,0.00017712,2]
[393228972,1762354233508,-1000.0,0.00017724,2]
[393228973,1762354233518,-5483.98605668,0.00017728,2]
[393228974,1762354233531,-6517.44394332,0.00017728,2]
[393228975,1762354233541,-2352.84,0.00017728,2]
[393228976,1762354233551,-1425.0,0.00017737,2]
[393228977,1762354233560,-466.03656782,0.00017742,2]
[393228978,1762354233571,-2887.0,0.00017752,2]
[393228979,1762354233581,-893.58488772,0.00017758,2]
[393228980,1762354233591,-1725.4232318,0.00017762,2]
[393228981,1762354233600,-692.94097906,0.00017762,2]
[393228982,1762354233610,-1000.0,0.0001777,2]
[393228983,1762354233620,-996.5,0.00017773,2]
[393228984,1762354233629,-169.01,0.00017781,2]
[393228985,1762354233638,-169.01,0.00017781,2]
[393228986,1762354233648,-169.01,0.00017781,2]
[393228987,1762354233657,-1000.0,0.00017783,2]
[393228988,1762354233667,-345.769,0.00017786,2]
[393228989,1762354233677,-976.863,0.00017795,2]
[393228990,1762354233689,-150.0,0.00017798,2]
[393228991,1762354233700,-1605.0,0.000178,2]
[393228992,1762354233719,-150.0,0.00017813,2]
[393228993,1762354233738,-1000.0,0.00017818,2]
[393228994,1762354233749,-150.0,0.0001782,2]
[393228995,1762354233759,-150.0,0.0001782,2]
[393228996,1762354233768,-150.0,0.0001782,2]
[393228997,1762354233778,-150.0,0.0001782,2]
[393228998,1762354233789,-150.0,0.0001782,2]
[393228999,1762354233799,-150.0,0.0001782,2]
[393229000,1762354233809,-168.06153408,0.0001782,2]
[393229001,1762354233819,-218.34669,0.0001782,2]
[393229002,1762354233828,-150.0,0.0001782,2]
[393229003,1762354233837,-150.0,0.0001782,2]
[393229004,1762354233848,-1425.0,0.00017832,2]
[393229005,1762354233857,-243.83,0.00017838,2]
[393229006,1762354233866,-4349.482,0.00017838,2]
[393229007,1762354233875,-500.0,0.00017855,2]
[393229008,1762354233884,-200.0,0.00017855,2]
[393229009,1762354233893,-821.42,0.00017856,2]
[393229010,1762354233903,-500.0,0.00017856,2]
[393229011,1762354233911,-200.0,0.00017856,2]
[393229012,1762354233921,-200.0,0.00017856,2]
[393229013,1762354233930,-1425.0,0.0001786,2]
[393229014,1762354233939,-150.0,0.00017862,2]
[393229015,1762354233948,-2256.0,0.00017864,2]
[393229016,1762354233959,-2500.0,0.00017865,3]
[393229017,1762354233969,-1000.0,0.00017872,2]
[393229018,1762354233978,-2500.0,0.00017874,3]
[393229019,1762354233987,-1425.0,0.0001788,2]
[393229020,1762354233997,-2500.0,0.00017882,3]
[393229021,1762354234006,-2500.0,0.00017882,3]
[393229022,1762354234016,-1000.0,0.00017885,2]
[393229023,1762354234026,-2500.0,0.00017891,3]
[393229024,1762354234035,-2500.0,0.00017891,3]
[393229025,1762354234044,-1342.89950275,0.00017893,2]
[393229026,1762354234054,-1000.0,0.00017895,2]
[393229027,1762354234063,-4286.1451576,0.000179,2]
[393229028,1762354234071,-2500.0,0.000179,3]
[393229029,1762354234081,-1725.4232318,0.000179,2]
[393229030,1762354234091,-5000.0,0.000179,2]
[393229031,1762354234101,-239.56426196,0.000179,2]
[393229032,1762354234111,-1210.0,0.000179,2]
[393229033,1762354234120,-1070.97355678,0.000179,2]
[393229034,1762354234129,-158.87637621,0.000179,2]
[393229035,1762354234140,-692.94097906,0.000179,2]
[393229036,1762354234149,-428.89678196,0.000179,2]
[393229037,1762354234158,-2500.0,0.000179,3]
[393229038,1762354234168,-2209.9134458,0.000179,2]
[393229039,1762354234372,-5448.52839387,0.000179,2]
[393229040,1762354234382,-1425.0,0.00017911,2]
[393229041,1762354234391,-150.0,0.00017922,2]
[393229042,1762354234402,-1425.0,0.00017924,2]
[393229043,1762354234411,-1425.0,0.00017928,2]
[393229044,1762354234420,-218.3467,0.0001793,2]
[393229045,1762354234429,-1346.7978817,0.00017936,2]
[393229046,1762354234439,-1425.0,0.00017949,2]
[393229047,1762354234449,-209.05525812,0.00017956,2]
[393229048,1762354234459,-150.0,0.00017956,2]
[393229049,1762354234473,-150.0,0.00017956,2]
[393229050,1762354234483,-150.0,0.00017956,2]
[393229051,1762354234494,-150.0,0.00017956,2]
[393229052,1762354234504,-150.0,0.00017956,2]
[393229053,1762354234515,-150.0,0.00017956,2]
[393229054,1762354234524,-150.0,0.00017956,2]
[393229055,1762354234534,-500.0,0.00017956,2]
[393229056,1762354234544,-150.0,0.00017956,2]
[393229057,1762354234554,-150.0,0.00017956,2]
[393229058,1762354234563,-150.0,0.00017956,2]
[393229059,1762354234573,-150.38503355,0.00017956,2]
[393229060,1762354234583,-500.0,0.00017956,2]
[393229061,1762354234592,-150.0,0.00017956,2]
[393229062,1762354234601,-150.0,0.00017956,2]
[393229063,1762354234611,-150.0,0.00017956,2]
[393229064,1762354234620,-150.0,0.00017956,2]
[393229065,1762354234634,-500.0,0.00017956,2]
[393229066,1762354234654,-150.0,0.00017956,2]
[393229067,1762354234664,-500.0,0.00017956,2]
[393229068,1762354234673,-150.0,0.00017956,2]
[393229069,1762354234683,-463.0,0.00017956,2]
[393229070,1762354234692,-154.26057965,0.00017956,2]
[393229071,1762354234702,-500.0,0.00017956,2]
[393229072,1762354234715,-150.0,0.00017956,2]
[393229073,1762354234729,-150.0,0.00017956,2]
[393229074,1762354234739,-150.0,0.00017956,2]
[393229075,1762354234750,-150.0,0.00017956,2]
[393229076,1762354234760,-500.0,0.00017956,2]
[393229077,1762354234770,-150.0,0.00017956,2]
[393229078,1762354234780,-500.0,0.00017956,2]
[393229079,1762354234790,-500.0,0.00017956,2]
[393229080,1762354234800,-150.0,0.0001796,2]
[393229081,1762354234810,-1425.0,0.00017962,2]
[393229082,1762354234820,-500.0,0.00017973,2]
[393229083,1762354234830,-500.0,0.00017973,2]
[393229084,1762354234840,-500.0,0.00017973,2]
[393229085,1762354234849,-500.0,0.00017973,2]
[393229086,1762354234859,-500.0,0.00017973,2]
[393229087,1762354234869,-500.0,0.00017973,2]
[393229088,1762354234879,-500.0,0.00017973,2]
[393229089,1762354234888,-500.0,0.00017973,2]
[393229090,1762354234897,-500.0,0.00017973,2]
[393229091,1762354234907,-500.0,0.00017973,2]
[393229092,1762354234916,-500.0,0.00017973,2]
[393229093,1762354234925,-500.0,0.00017973,2]
[393229094,1762354234935,-500.0,0.00017973,2]
[393229095,1762354234944,-500.0,0.00017973,2]
[393229096,1762354234954,-192.59474214,0.00017989,2]
[393229097,1762354234963,-1425.0,0.00017992,2]
[393229098,1762354234977,-11692.3423697,0.00017996,2]
[393229099,1762354234987,-27520.92376558,0.00017998,2]
[393229100,1762354235000,-15594.08316732,0.00017998,2]
[393229101,1762354235010,-450.0,0.00017999,5]
[393229102,1762354235020,-156.833,0.00017999,2]
[393229103,1762354235029,-5890.33622538,0.00017999,2]
[393229104,1762354235039,-300.0,0.00017999,2]
[393229105,1762354235048,-1000.0,0.00017999,2]
[393229106,1762354235058,-300.0,0.00017999,2]
[393229107,1762354235068,-666.0,0.00017999,2]
[393229108,1762354235076,-300.0,0.00017999,2]
[393229109,1762354235086,-300.0,0.00017999,2]
[393229110,1762354235095,-666.0,0.00017999,2]
[393229111,1762354235105,-589.41461623,0.00017999,2]
[393229112,1762354235115,-572.17571964,0.00017999,2]
[393229113,1762354235124,-153.96997627,0.00018,2]
[393229114,1762354235133,-153.83494713,0.00018,2]
[393229115,1762354235142,-826.0,0.00018,2]
[393229116,1762354235151,-841.91548812,0.00018,2]
[393229117,1762354235161,-607.0,0.00018,2]
[393229118,1762354235170,-574.0,0.00018,2]
[393229119,1762354235180,-1315.0,0.00018,2]
[393229120,1762354235189,-3422.0,0.00018,2]
[393229121,1762354235198,-1595.0,0.00018,2]
[393229122,1762354235207,-820.0,0.00018,2]
[393229123,1762354235217,-1188.0,0.00018,2]
[393229124,1762354235228,-905.0,0.00018,2]
[393229125,1762354235238,-1272.0,0.00018,2]
[393229126,1762354235247,-812.0,0.00018,2]
[393229127,1762354235256,-1627.06074168,0.00018,2]
[393229128,1762354235279,-4845.93925832,0.00018,2]
[393229129,1762354235289,-777.77473126,0.00018,2]
[393229130,1762354235301,-5886.47426874,0.00018,2]
[393229131,1762354235310,-2141.0,0.00018,2]
[393229132,1762354235320,-5219.0,0.00018,2]
[393229133,1762354235329,-17283.10142785,0.00018,2]
[393229134,1762354235341,-345.51780687,0.00018,2]
[393229135,1762354235352,-2926.6787721,0.00018,2]
[393229136,1762354235560,150.0,0.00016658,120]
[393229139,1762354237750,-150.0,0.00016658,2]
[393229140,1762354237760,-560.927,0.00018,2]
[393229141,1762354237770,-11110.28810476,0.00018,2]
[393229142,1762354237782,-407.2729115,0.00018,2]
[393229145,1762354239769,-995.71406077,0.00018,2]
[393229146,1762354239825,-705.19356033,0.00018,2]
[393229147,1762354239837,-1056.1538399,0.00018,2]
[393229149,1762354241578,-1.7e-07,0.00018,2]
[393229150,1762354241594,-847810.55599837,0.00018,2]
[393229152,1762354243207,-500.0,0.0001764,2]
[393229157,1762354245851,-607.01066131,0.0001764,2]
[393229158,1762354245861,-1128.84962079,0.0001764,2]
[393229159,1762354245872,-1123.90070181,0.0001764,2]
[393229160,1762354245882,-575.12495716,0.0001764,2]
[393229161,1762354245897,-518.64461525,0.0001764,2]
[393229162,1762354245906,-21.45426571,0.00017781,2]
[393229163,1762354245923,-316.56573429,0.00017781,2]
[393229164,1762354245932,-249.23654805,0.000179,2]
[393229167,1762354271234,500.0,0.00016761,2]
[393229172,1762354314747,9500.01,0.00016662,2]
[393229173,1762354314777,10000.01,0.00016662,2]
[393229174,1762354314806,10000.01,0.00016662,2]
[393229175,1762354314832,10000.01,0.00016662,2]
[393229176,1762354314860,10000.01,0.00016662,2]
[393229177,1762354314887,10000.01,0.00016662,2]
[393229178,1762354314917,10000.01,0.00016662,2]
[393229179,1762354314944,10000.01,0.00016662,2]
[393229180,1762354314976,10000.01,0.00016662,2]
[393229181,1762354315003,10000.01,0.00016662,2]
[393229182,1762354315618,-195.0,0.00016662,2]
[393229184,1762354322192,-10000.01,0.00016662,2]
[393229185,1762354322332,-10000.01,0.00016662,2]
[393229186,1762354322485,-10000.01,0.00016662,2]
[393229187,1762354322636,-10000.01,0.00016662,2]
[393229188,1762354322781,-10000.01,0.00016662,2]
[393229189,1762354322899,-10000.01,0.00016662,2]
[393229190,1762354323019,-10000.01,0.00016662,2]
[393229191,1762354323165,-10000.01,0.00016662,2]
[393229192,1762354323292,-10000.01,0.00016662,2]
[393229193,1762354323406,-10000.01,0.00016662,2]
[393229194,1762354336607,-314.98084533,0.00016662,2]
[393229195,1762354338670,-494.5147529,0.00016662,2]
[393229196,1762354341264,-187.2538,0.00016662,2]
[393229197,1762354344119,-166.66,0.00016662,2]
[393229198,1762354344229,1404.90449395,0.00016562,2]
[393229199,1762354345705,-165.60681668,0.00016662,2]
[393229200,1762354349182,-170.98378509,0.00016662,2]
[393229201,1762354351224,-171.95036097,0.00016662,2]
[393229202,1762354353282,-228.35152903,0.00016662,2]
[393229203,1762354357291,-455.90035702,0.00016578,2]
[393229204,1762354361011,-232.98771708,0.00016578,2]
[393229205,1762354364948,-405.91963619,0.00016578,2]
[393229206,1762354382009,-300.0,0.00016578,2]
[393229207,1762354385402,-251.06440271,0.00016578,2]
[393229208,1762354385429,-48.93559729,0.00016605,2]
[393229209,1762354389330,-235.34950271,0.00016605,2]
[393229210,1762354389356,-72.1235079,0.0001666,2]
[393229213,1762354391387,-360.28752108,0.0001666,2]
[393229236,1762354411563,-430.02847086,0.0001666,2]
[393229237,1762354413123,-289.70617957,0.0001666,2]
[393229238,1762354416453,-47.85432059,0.0001666,2]
[393229239,1762354416479,-157.05196529,0.00016661,2]
[393229240,1762354420840,242.6841,0.00016562,2]
[393229241,1762354421303,-116.59803471,0.00016661,2]
[393229242,1762354421329,-422.8440897,0.00016661,2]
[393229243,1762354421386,-77.1559103,0.00016661,2]
[393229244,1762354421416,-500.0,0.00016661,2]
[393229245,1762354421448,-500.0,0.00016661,2]
[393229246,1762354421480,-500.0,0.00016661,2]
[393229247,1762354421513,-500.0,0.00016661,2]
[393229248,1762354421548,-500.0,0.00016661,2]
[393229249,1762354421581,-500.0,0.00016661,2]
[393229250,1762354421615,-500.0,0.00016661,2]
[393229251,1762354421648,-500.0,0.00016661,2]
[393229252,1762354421681,-241.95270999,0.00016661,2]
[393229253,1762354421712,-500.0,0.00016661,2]
[393229254,1762354421788,-500.0,0.00016661,2]
[393229255,1762354421821,-500.0,0.00016661,2]
[393229256,1762354421853,-500.0,0.00016661,2]
[393229257,1762354421884,-500.0,0.00016661,2]
[393229258,1762354421914,-500.0,0.00016661,2]
[393229259,1762354421945,-500.0,0.00016661,2]
[393229260,1762354421978,-500.0,0.00016661,2]
[393229261,1762354422010,-500.0,0.00016661,2]
[393229262,1762354422041,-500.0,0.00016661,2]
[393229263,1762354422073,-500.0,0.00016661,2]
[393229264,1762354422830,-8714.22416547,0.00016662,2]
[393229265,1762354422887,-10000.01,0.00016662,2]
[393229266,1762354422911,-10000.01,0.00016662,2]
[393229267,1762354422927,-10000.01,0.00016662,2]
[393229268,1762354422978,-10000.01,0.00016662,2]
[393229269,1762354422996,-10000.01,0.00016662,2]
[393229270,1762354423012,-10000.01,0.00016662,2]
[393229271,1762354423032,-10000.01,0.00016662,2]
[393229272,1762354424034,-10000.01,0.00016662,2]
[393229273,1762354427054,-10000.01,0.00016662,2]
[393229274,1762354427216,-10000.01,0.00016662,2]
[393229275,1762354427380,-10000.01,0.00016662,2]
[393229276,1762354427501,-10000.01,0.00016662,2]
[393229277,1762354427627,-10000.01,0.00016662,2]
[393229278,1762354427743,-10000.01,0.00016662,2]
[393229279,1762354427864,-10000.01,0.00016662,2]
[393229280,1762354427998,-10000.01,0.00016662,2]
[393229281,1762354428187,-10000.01,0.00016662,2]
[393229282,1762354430220,-10000.01,0.00016662,2]
[393229283,1762354433181,-150.30189,0.00016578,2]
[393229284,1762354433222,-9699.40622,0.00016662,2]
[393229285,1762354433300,-10000.01,0.00016662,2]
[393229286,1762354433431,-9.33227547,0.00016662,2]
[393229287,1762354433457,-9981.34544906,0.00016662,2]
[393229288,1762354433582,-1000.0,0.00016662,2]
[393229289,1762354433623,-1404.90449394,0.00016711,2]
[393229290,1762354433660,-500.0,0.00016761,2]
[393229291,1762354433700,-342.52502965,0.00016761,2]
[393229292,1762354441525,-402.83319254,0.00016799,2]
[393229293,1762354443902,-97.16680746,0.00016799,2]
[393229294,1762354443927,-141.74237464,0.00016859,2]
[393229295,1762354446432,-432.2056193,0.00016859,2]
[393229296,1762354451833,500.0,0.00016562,2]
[393229297,1762354457641,9500.01,0.00016562,2]
[393229298,1762354457664,10000.01,0.00016562,2]
[393229299,1762354457686,10000.01,0.00016562,2]
[393229300,1762354457708,3754.3461,0.00016562,2]
[393229301,1762354472461,-237.29422166,0.00016761,2]
[393229302,1762354474327,-190.54289006,0.00016761,2]
[393229303,1762354475209,151.0,0.00015711,2]
[393229304,1762354475876,376.596,0.00016562,2]
[393229305,1762354484751,5718.0679,0.00016562,2]
[393229306,1762354484784,10000.01,0.00016562,2]
[393229307,1762354484814,10000.01,0.00016562,2]
[393229308,1762354484842,10000.01,0.00016562,2]
[393229309,1762354484871,10000.01,0.00016562,2]
[393229310,1762354484898,10000.01,0.00016562,2]
[393229311,1762354484929,10000.01,0.00016562,2]
[393229312,1762354484960,10000.01,0.00016562,2]
[393229313,1762354484989,10000.01,0.00016562,2]
[393229314,1762354485017,10000.01,0.00016562,2]
[393229315,1762354514176,-500.0,0.00016356,2]
[393229316,1762354514212,-500.0,0.00016356,2]
[393229317,1762354514245,-300.0,0.00016561,2]
[393229318,1762354514278,-1200.0,0.00016561,2]
[393229319,1762354518543,-5000.01,0.00016562,2]
[393229320,1762354518658,-10000.01,0.00016562,2]
[393229321,1762354518793,-10000.01,0.00016562,2]
[393229322,1762354518905,-10000.01,0.00016562,2]
[393229323,1762354519030,-10000.01,0.00016562,2]
[393229324,1762354519194,-10000.01,0.00016562,2]
[393229325,1762354520224,-10000.01,0.00016562,2]
[393229326,1762354520355,-10000.01,0.00016562,2]
[393229327,1762354520480,-10000.01,0.00016562,2]
[393229328,1762354520681,-10000.01,0.00016562,2]
[393229329,1762354523355,-10000.01,0.00016562,2]
[393229330,1762354523481,-10000.01,0.00016562,2]
[393229331,1762354523606,-10000.01,0.00016562,2]
[393229332,1762354523756,-10000.01,0.00016562,2]
[393229333,1762354523953,-10000.01,0.00016562,2]
[393229334,1762354524089,-10000.01,0.00016562,2]
[393229335,1762354559188,-153.73396481,0.00016462,2]
[393229336,1762354559231,-9692.54207038,0.00016562,2]
[393229337,1762354559420,-10000.01,0.00016562,2]
[393229338,1762354562088,-300.0,0.00016561,2]
[393229339,1762354562126,-9400.01,0.00016562,2]
[393229340,1762354568267,-10000.01,0.00016562,2]
[393229341,1762354577230,-478.15,0.00016438,2]
[393229342,1762354577277,-9043.71,0.00016562,2]
[393229343,1762354643048,500.0,0.00013001,2]
[393229344,1762354644435,500.0,0.00013,2]
[393229345,1762354647358,500.0,0.00013001,2]
[393229346,1762354648240,360.9303652,0.00013001,2]
[393229347,1762354760800,1000.0,0.000175,3]
[393229348,1762354761119,1000.0,0.000175,3]
[393229349,1762354761585,1000.0,0.000175,3]
[393229350,1762354782618,150.0,0.000175,3]
[393229386,1762354877593,-300.0378894,0.00015959,2]
[393229397,1762354880138,-202.83002145,0.00015959,2]
[393229398,1762354881870,-747.08911279,0.00015959,2]
[393229403,1762354884006,-166.66,0.00015959,2]
[393229410,1762354885763,-339.88676447,0.00015959,2]
[393229411,1762354887040,-971.19936189,0.00015959,2]